bitfinex-derivatives/quotes_SOLF0:USTF0_20241024
["timestamp","ask_amount","ask_price","bid_price","bid_amount"]
[1729763978693,2.9138,171.74,171.71,2.9143]
[1729763978893,2.9138,171.74,171.72,1.45731803]
[1729763979091,2.9138,171.74,171.71,10.08086477]
[1729763979299,2.9138,171.74,171.72,1.45731809]
[1729763979501,2.9138,171.74,171.71,10.08086477]
[1729763979797,2.9138,171.74,171.72,1.45731245]
[1729763979993,2.9138,171.74,171.71,10.08086477]
[1729763980194,2.9138,171.74,171.72,1.45731245]
[1729763980500,2.9138,171.74,171.71,10.08086477]
[1729763980798,2.9138,171.74,171.72,1.45731245]
[1729763980986,2.9138,171.74,171.71,10.08086477]
[1729763981386,2.9138,171.74,171.72,1.45726453]
[1729763981591,2.9138,171.74,171.71,10.08086477]
[1729763981792,2.9138,171.74,171.72,1.45725321]
[1729763982097,2.9138,171.74,171.71,10.08086477]
[1729763982297,2.9138,171.74,171.72,1.45725979]
[1729763982499,2.9138,171.74,171.71,10.08086477]
[1729763982699,2.9138,171.74,171.72,1.45725979]
[1729763982894,2.9138,171.74,171.71,10.08086477]
[1729763983097,2.9138,171.74,171.72,1.45725979]
[1729763983406,2.9138,171.74,171.71,10.08086477]
[1729763983599,2.9138,171.74,171.72,1.45725297]
[1729763983801,2.9138,171.74,171.71,10.08086477]
[1729763984002,2.9138,171.74,171.72,1.45725297]
[1729763984304,2.9138,171.74,171.71,10.08086477]
[1729763984502,2.9138,171.74,171.72,1.45725955]
[1729763984797,2.9138,171.74,171.71,10.08086477]
[1729763985203,2.9138,171.74,171.72,1.45725955]
[1729763985405,2.9138,171.74,171.71,10.08086477]
[1729763985597,2.9138,171.74,171.72,1.4572593]
[1729763985797,2.9138,171.74,171.71,10.08086477]
[1729763985998,2.9138,171.74,171.72,1.4572593]
[1729763986301,2.9138,171.74,171.71,10.08086477]
[1729763986498,7.4337,171.75,171.72,1.4572593]
[1729763986699,7.4337,171.75,171.71,10.08086477]
[1729763986899,7.4337,171.75,171.72,1.4572593]
[1729763987199,7.4337,171.75,171.71,10.08086477]
[1729763987398,7.4337,171.75,171.72,1.4572593]
[1729763987599,7.4337,171.75,171.71,10.08086477]
[1729763987799,7.4337,171.75,171.72,1.4572593]
[1729763988001,2.516,171.83,171.73,7.16656477]
[1729763988306,7.16656477,171.81,171.74,7.16656477]
[1729763988510,2.95700585,171.8,171.74,7.16656477]
[1729763988703,2.9132,171.78,171.75,7.16656477]
[1729763988899,7.4332,171.78,171.75,7.16656477]
[1729763990407,7.4331,171.78,171.76,2.9134]
[1729763990601,2.9131,171.78,171.75,7.16656477]
[1729763991001,2.9131,171.78,171.75,10.08006477]
[1729763993011,2.516,171.83,171.75,7.16656477]
[1729763993202,11.68656477,171.82,171.77,7.16656477]
[1729763993607,14.53120952,171.82,171.77,7.16656477]
[1729763995110,2.913,171.79,171.77,7.16656477]
[1729763995505,2.913,171.79,171.76,2.9134]
[1729763997611,7.16656477,171.81,171.75,10.08006477]
[1729763998004,2.9131,171.79,171.76,2.9134]
[1729764001412,2.9133,171.78,171.74,7.16656477]
[1729764001717,4.52,171.78,171.75,1.45702763]
[1729764002017,4.52,171.78,171.73,7.16656477]
[1729764002214,4.52,171.78,171.74,1.45701943]
[1729764002715,4.52,171.78,171.75,1.45701943]
[1729764002918,4.52,171.78,171.73,7.16656477]
[1729764003111,4.52,171.78,171.74,1.45701316]
[1729764003417,4.52,171.79,171.76,7.16656477]
[1729764003609,1.0725,171.85,171.78,7.16656477]
[1729764003815,4.52,171.84,171.79,11.53629418]
[1729764004011,2.98340594,171.83,171.79,10.07946477]
[1729764004216,2.98340594,171.83,171.79,2.9129]
[1729764004613,2.9126,171.82,171.79,2.9129]
[1729764005819,2.9127,171.81,171.78,2.9131]
[1729764006016,2.9127,171.81,171.79,1.45676543]
[1729764006217,2.9127,171.81,171.78,2.9131]
[1729764007925,2.9129,171.8,171.76,2.9133]
[1729764008122,2.9129,171.8,171.77,1.45679815]
[1729764008320,2.9129,171.8,171.78,1.45679815]
[1729764008515,2.9129,171.8,171.76,7.16656477]
[1729764008716,2.9129,171.8,171.77,1.45680796]
[1729764008912,2.9129,171.8,171.78,1.45680796]
[1729764009118,2.913,171.79,171.76,2.9135]
[1729764009415,7.16656477,171.82,171.77,8.623374]
[1729764009715,2.9129,171.8,171.78,1.45680923]
[1729764009915,2.9129,171.8,171.77,7.16656477]
[1729764010312,2.9129,171.8,171.77,10.07986477]
[1729764012322,2.9129,171.8,171.77,2.9133]
[1729764012526,2.9129,171.8,171.76,2.9134]
[1729764012718,2.9129,171.8,171.77,1.45681752]
[1729764012719,2.9133,171.78,171.77,1.45681752]
[1729764012918,7.16656477,171.78,171.68,7.16656477]
[1729764013119,7.16656477,171.74,171.7,2.9143]
[1729764013317,2.914,171.73,171.7,2.9143]
[1729764013716,7.16656477,171.74,171.7,2.9143]
[1729764014525,10.08046477,171.74,171.7,2.9143]
[1729764015326,7.16656477,171.74,171.68,7.16656477]
[1729764015529,2.9141,171.72,171.67,7.16656477]
[1729764017222,7.16656477,171.71,171.65,1.252]
[1729764017430,7.16656477,171.71,171.65,8.41856477]
[1729764017831,7.16656477,171.71,171.68,2.9147]
[1729764018518,2.9141,171.72,171.68,2.9147]
[1729764020224,2.86088567,171.74,171.65,1.252]
[1729764020225,7.16656477,171.71,171.65,1.252]
[1729764020420,7.16656477,171.71,171.65,8.41856477]
[1729764020729,7.16656477,171.71,171.68,2.9148]
[1729764021633,7.16656477,171.71,171.65,8.41856477]
[1729764021927,10.08036477,171.74,171.69,7.16656477]
[1729764022333,10.08036477,171.74,171.71,2.9143]
[1729764022334,7.16656477,171.74,171.71,2.9143]
[1729764022824,7.16656477,171.77,171.73,2.9139]
[1729764023025,4.52,171.76,171.73,2.9139]
[1729764023620,10.07986477,171.77,171.72,2.914]
[1729764023822,14.59986477,171.77,171.72,7.16656477]
[1729764024020,1.1949,171.81,171.74,7.16656477]
[1729764024225,14.59926477,171.81,171.77,2.9131]
[1729764024421,3.3799,171.88,171.78,7.16656477]
[1729764024627,10.07866477,171.84,171.78,7.16656477]
[1729764024829,12.96485634,171.84,171.8,2.9127]
[1729764025428,12.96485634,171.84,171.81,2.9125]
[1729764025429,7.16656477,171.84,171.81,2.9125]
[1729764026428,10.07866477,171.84,171.8,2.9127]
[1729764028435,7.16656477,171.84,171.79,7.16656477]
[1729764028636,7.16656477,171.84,171.81,2.9125]
[1729764029035,7.4318,171.86,171.82,2.9124]
[1729764029229,4.52,171.86,171.82,2.9124]
[1729764029537,4.52,171.86,171.81,0.07896477]
[1729764029930,7.16656477,171.87,171.81,0.07896477]
[1729764030132,11.68656477,171.87,171.81,0.07896477]
[1729764030333,2.912,171.85,171.82,2.9124]
[1729764032031,2.9119,171.86,171.82,2.9124]
[1729764033349,2.9535336,171.85,171.82,2.9124]
[1729764033533,2.912,171.85,171.82,2.9124]
[1729764033734,5.85272001,171.85,171.82,2.9124]
[1729764033935,7.16656477,171.84,171.79,7.16656477]
[1729764034235,2.9123,171.83,171.8,2.9128]
[1729764034741,10.07916477,171.82,171.78,2.913]
[1729764035132,10.07916477,171.82,171.77,7.16656477]
[1729764035133,7.16656477,171.82,171.77,7.16656477]
[1729764035437,7.16656477,171.82,171.76,2.403]
[1729764035438,7.16656477,171.81,171.76,7.16656477]
[1729764035640,4.52,171.84,171.75,7.16656477]
[1729764035835,2.9127,171.81,171.77,2.9133]
[1729764036136,7.16656477,171.82,171.76,7.16656477]
[1729764036342,10.07916477,171.82,171.76,7.16656477]
[1729764037139,2.9128,171.8,171.76,7.16656477]
[1729764037338,7.16656477,171.82,171.76,7.16656477]
[1729764037835,2.9127,171.81,171.78,2.9131]
[1729764039049,2.9125,171.82,171.78,2.9131]
[1729764039537,11.68656477,171.84,171.8,2.9128]
[1729764039745,11.68656477,171.84,171.78,7.16656477]
[1729764039944,4.52,171.84,171.79,7.16656477]
[1729764040248,4.52,171.84,171.72,5.8029]
[1729764040249,2.912,171.85,171.81,7.16656477]
[1729764040448,4.52,171.86,171.81,7.16656477]
[1729764041145,2.9118,171.86,171.81,7.16656477]
[1729764041647,2.9118,171.86,171.82,2.9124]
[1729764042551,2.9124,171.83,171.8,2.9127]
[1729764043044,2.9124,171.83,171.78,1.2652]
[1729764043045,10.07866477,171.84,171.78,1.2652]
[1729764043240,10.07866477,171.84,171.8,2.9127]
[1729764043241,2.9121,171.84,171.8,2.9127]
[1729764046554,10.07866477,171.84,171.8,2.9127]
[1729764048650,7.432,171.85,171.81,2.9125]
[1729764048851,4.52,171.85,171.8,7.16656477]
[1729764049558,4.52,171.85,171.82,2.9123]
[1729764049945,10.07846477,171.86,171.82,2.9123]
[1729764050955,7.16656477,171.85,171.82,2.9123]
[1729764051254,10.09289531,171.85,171.82,2.9123]
[1729764051448,7.16656477,171.85,171.82,2.9123]
[1729764052953,7.16656477,171.85,171.79,7.16656477]
[1729764053151,7.16656477,171.85,171.83,2.9123]
[1729764053350,14.59836477,171.86,171.83,2.9123]
[1729764053552,2.85234946,171.85,171.83,2.9123]
[1729764053752,14.59836477,171.86,171.83,2.9123]
[1729764056759,2.912,171.85,171.82,2.9124]
[1729764056957,7.16656477,171.85,171.82,2.9124]
[1729764057462,2.9121,171.85,171.79,7.16656477]
[1729764057860,2.85467957,171.85,171.79,7.16656477]
[1729764058558,2.9122,171.84,171.81,2.9125]
[1729764058749,7.16656477,171.84,171.78,8.43176477]
[1729764058955,7.16656477,171.82,171.76,7.16656477]
[1729764059156,10.07916477,171.82,171.79,2.9129]
[1729764059458,7.16656477,171.82,171.74,4.52]
[1729764059656,7.16656477,171.82,171.76,7.16656477]
[1729764060054,2.9126,171.81,171.78,2.913]
[1729764060452,7.16656477,171.82,171.75,7.16656477]
[1729764060760,7.16656477,171.81,171.73,7.16656477]
[1729764061162,2.9128,171.8,171.76,2.9133]
[1729764061758,7.16656477,171.81,171.75,7.16656477]
[1729764062068,11.68656477,171.82,171.77,7.16656477]
[1729764062666,4.52,171.82,171.79,2.9128]
[1729764062865,4.52,171.82,171.72,3.6973]
[1729764063065,4.52,171.82,171.77,7.16656477]
[1729764063265,7.4326,171.82,171.78,2.913]
[1729764064262,7.4326,171.82,171.77,7.16656477]
[1729764064263,4.52,171.82,171.77,7.16656477]
[1729764064459,4.52,171.86,171.8,7.16656477]
[1729764065052,7.4318,171.86,171.83,2.9122]
[1729764065456,4.52,171.86,171.83,2.9122]
[1729764068861,14.59816477,171.87,171.84,2.9121]
[1729764069068,10.07816477,171.87,171.84,2.9121]
[1729764069672,14.59806477,171.88,171.84,2.912]
[1729764070665,1.2651,171.92,171.84,7.16656477]
[1729764070861,2.9112,171.9,171.86,7.16656477]
[1729764072360,1.2651,171.92,171.87,7.16656477]
[1729764072361,4.52,171.92,171.87,7.16656477]
[1729764072966,14.59726477,171.93,171.89,2.9111]
[1729764073167,14.59726477,171.93,171.87,7.16656477]
[1729764073972,11.68656477,171.93,171.87,7.16656477]
[1729764074668,11.68656477,171.93,171.88,2.9113]
[1729764075063,2.9111,171.91,171.87,2.9116]
[1729764077665,11.68656477,171.93,171.7,154.65033156]
[1729764077666,7.16656477,171.88,171.7,154.65033156]
[1729764077865,7.16656477,171.81,171.74,1.2176]
[1729764078070,7.16656477,171.81,171.75,7.16656477]
[1729764078260,2.9127,171.81,171.77,2.9132]
[1729764078472,2.86708121,171.81,171.72,11.19135052]
[1729764078659,15.71135052,171.83,171.72,11.19135052]
[1729764078970,2.9128,171.8,171.75,2.9135]
[1729764079168,2.90178849,171.79,171.75,2.9135]
[1729764079370,11.19135052,171.81,171.71,3.5947]
[1729764079571,2.9131,171.78,171.73,2.9139]
[1729764080275,2.9131,171.78,171.74,2.9137]
[1729764082676,4.52,171.79,171.75,2.9135]
[1729764083374,7.433,171.79,171.75,2.9135]
[1729764085074,4.52,171.79,171.77,2.9132]
[1729764086675,4.52,171.82,171.78,2.913]
[1729764086875,7.42263468,171.82,171.78,2.913]
[1729764087970,7.42263468,171.82,171.79,2.9129]
[1729764090881,4.52,171.82,171.79,2.9129]
[1729764091182,4.52,171.82,171.73,4.52]
[1729764091383,4.52,171.82,171.8,2.9127]
[1729764092672,4.52,171.82,171.81,2.9126]
[1729764092879,4.52,171.83,171.81,2.9126]
[1729764094577,7.4321,171.85,171.81,2.9126]
[1729764095082,4.52,171.85,171.81,2.9126]
[1729764095282,2.98055483,171.84,171.81,2.9126]
[1729764096285,5.89265483,171.84,171.81,2.9126]
[1729764097481,4.52,171.85,171.75,11.19135052]
[1729764097682,2.97443818,171.84,171.75,11.19135052]
[1729764098083,2.9124,171.83,171.77,2.9132]
[1729764098396,7.16010132,171.81,171.76,7.16010132]
[1729764098593,7.16010132,171.81,171.71,3.5947]
[1729764098594,10.07270132,171.81,171.75,10.07370132]
[1729764098789,7.16010132,171.81,171.75,7.16010132]
[1729764099185,2.9125,171.82,171.79,2.913]
[1729764099382,10.07260132,171.82,171.79,2.913]
[1729764099590,11.68010132,171.85,171.79,7.16010132]
[1729764099799,14.59210132,171.85,171.8,2.9126]
[1729764099982,14.59210132,171.85,171.79,7.16010132]
[1729764100290,17.54044827,171.85,171.79,7.16010132]
[1729764100596,14.62844827,171.85,171.79,7.16010132]
[1729764101300,17.54044827,171.85,171.81,2.9125]
[1729764101900,2.9116,171.88,171.83,2.9121]
[1729764102100,4.52,171.87,171.83,2.9121]
[1729764102306,2.95079673,171.86,171.83,2.9121]
[1729764102494,2.9118,171.86,171.83,2.9121]
[1729764102697,2.9118,171.86,171.82,10.07250132]
[1729764102892,2.9118,171.86,171.8,1.1842]
[1729764103099,2.9118,171.86,171.81,7.16010132]
[1729764103400,7.16010132,171.85,171.8,1.1842]
[1729764103903,7.16010132,171.85,171.82,2.9123]
[1729764104293,10.07190132,171.86,171.82,2.9123]
[1729764105003,2.912,171.85,171.81,2.9126]
[1729764107797,10.07210132,171.85,171.81,2.9126]
[1729764110297,2.912,171.85,171.81,2.9126]
[1729764110498,2.9117,171.87,171.83,2.9122]
[1729764110694,4.5,171.87,171.83,7.16010132]
[1729764111204,4.5,171.87,171.8,1.1842]
[1729764111205,7.4113,171.89,171.85,2.9118]
[1729764111607,2.9114,171.88,171.85,2.9118]
[1729764112701,7.16010132,171.86,171.81,7.16010132]
[1729764112901,7.16010132,171.86,171.8,1.1842]
[1729764113104,4.5,171.85,171.81,2.9125]
[1729764113407,4.5,171.85,171.81,7.16010132]
[1729764114802,4.5,171.85,171.83,2.9122]
[1729764115003,62.88,171.9,171.82,7.16010132]
[1729764115205,2.3671,171.95,171.85,7.16010132]
[1729764115404,7.16010132,171.92,171.85,7.16010132]
[1729764115910,2.9109,171.91,171.87,2.9116]
[1729764117910,7.16010132,171.91,171.85,7.16010132]
[1729764118109,11.66010132,171.91,171.85,7.16010132]
[1729764118513,2.9112,171.9,171.86,2.9116]
[1729764119905,11.66010132,171.91,171.85,7.16010132]
[1729764120112,10.07140132,171.89,171.85,2.9119]
[1729764121913,7.16010132,171.87,171.81,11.66010132]
[1729764122110,7.16010132,171.87,171.81,7.16010132]
[1729764122506,11.66010132,171.87,171.8,8.34430132]
[1729764122909,2.9118,171.86,171.82,2.9124]
[1729764123113,2.9318834,171.85,171.82,2.9124]
[1729764123303,2.9118,171.86,171.82,2.9124]
[1729764123709,2.9118,171.86,171.8,8.34430132]
[1729764123710,11.66010132,171.87,171.8,8.34430132]
[1729764123910,4.5,171.87,171.84,2.912]
[1729764127920,4.5,171.87,171.82,7.16010132]
[1729764128116,4.5,171.87,171.85,2.9118]
[1729764128513,4.5,171.87,171.82,7.16010132]
[1729764128715,4.5,171.89,171.87,2.9115]
[1729764129017,11.66010132,171.89,171.87,2.9115]
[1729764129319,4.5,171.89,171.84,7.16010132]
[1729764129916,4.5,171.89,171.86,2.9116]
[1729764130711,4.5,171.89,171.87,2.9116]
[1729764133622,4.5,171.89,171.88,2.9114]
[1729764134526,11.66010132,171.89,171.8,1.1842]
[1729764134830,7.16010132,171.88,171.81,7.16010132]
[1729764135128,2.90788711,171.87,171.81,7.16010132]
[1729764135721,5.81948711,171.87,171.84,2.9121]
[1729764135922,2.90788711,171.87,171.84,2.9121]
[1729764136234,4.5,171.89,171.82,7.16010132]
[1729764136423,4.5,171.89,171.84,7.16010132]
[1729764137031,4.5,171.89,171.86,2.9116]
[1729764137925,4.5,171.89,171.84,7.16010132]
[1729764138128,4.5,171.89,171.87,2.9116]
[1729764138932,4.5,171.89,171.86,2.9117]
[1729764139323,4.5,171.89,171.84,7.16010132]
[1729764139624,1.2966,171.95,171.9,2.911]
[1729764139820,11.66010132,171.94,171.9,2.911]
[1729764140025,4.5,171.93,171.9,2.911]
[1729764140532,7.4106,171.93,171.9,2.911]
[1729764140728,11.66010132,171.94,171.91,2.9109]
[1729764140928,2.8846009,171.97,171.91,7.16010132]
[1729764141232,11.66010132,171.97,171.91,7.16010132]
[1729764142036,7.16010132,171.97,171.91,7.16010132]
[1729764142243,10.07000132,171.97,171.93,2.9105]
[1729764142528,2.9099,171.97,171.93,2.9105]
[1729764144919,2.9096,171.99,171.95,2.9101]
[1729764145126,1.0694,172.04,171.91,11.18155034]
[1729764145329,15.68155034,172.03,171.91,11.18155034]
[1729764145529,18.53743925,172.03,171.91,11.18155034]
[1729764145730,2.9096,171.99,171.95,2.9102]
[1729764145931,18.53743925,172.03,171.91,11.18155034]
[1729764146232,2.9093,172.01,171.97,2.9099]
[1729764146435,18.53743925,172.03,171.91,11.18155034]
[1729764147225,2.9095,172.0,171.96,2.9101]
[1729764150036,7.35588891,172.03,171.98,2.9097]
[1729764150228,18.53743925,172.03,171.91,11.18155034]
[1729764150535,2.9094,172.01,171.97,2.9098]
[1729764150928,7.4094,172.01,171.97,2.9098]
[1729764151437,2.9094,172.0,171.97,2.9098]
[1729764154434,4.5,172.09,171.96,11.18155034]
[1729764154739,4.5,172.08,171.97,1.1789]
[1729764154928,4.5,172.08,172.04,2.9086]
[1729764155333,7.4709217,172.08,171.99,4.09015034]
[1729764156137,10.3790217,172.08,172.04,2.9086]
[1729764156334,11.18155034,172.13,172.01,11.18155034]
[1729764156535,1.0681,172.18,172.0,4.5]
[1729764156536,11.18155034,172.11,172.0,4.5]
[1729764156726,2.9081,172.08,172.03,2.9087]
[1729764156933,2.84883347,172.08,171.99,15.68155034]
[1729764157132,4.5,172.1,171.99,15.68155034]
[1729764157338,7.34127149,172.1,172.01,11.18155034]
[1729764157943,2.9079,172.09,172.02,1.259]
[1729764158340,2.9079,172.09,172.04,2.9087]
[1729764158544,2.9082,172.07,172.01,15.68155034]
[1729764158842,2.84127149,172.1,172.01,15.68155034]
[1729764159139,210.96566057,172.19,172.01,15.68155034]
[1729764159345,11.18155034,172.16,172.03,11.18155034]
[1729764159544,14.09660106,172.16,172.04,4.5]
[1729764159845,2.9075,172.12,172.06,2.9083]
[1729764160247,2.9075,172.12,172.07,2.908]
[1729764160542,2.9072,172.13,172.04,4.5]
[1729764160848,2.9072,172.13,172.04,5.7172]
[1729764161646,2.9074,172.12,172.08,2.908]
[1729764161836,2.9074,172.12,172.05,4.5]
[1729764162041,4.5,172.14,172.04,1.2172]
[1729764162342,15.68155034,172.14,172.05,2.9084]
[1729764163044,2.9077,172.11,172.06,2.9083]
[1729764163244,4.5,172.14,172.04,1.2172]
[1729764164146,4.5,172.14,172.06,11.18155034]
[1729764164344,2.84995033,172.13,172.08,7.15013946]
[1729764164754,2.9075,172.12,172.08,7.15013946]
[1729764164954,2.84995033,172.13,172.08,7.15013946]
[1729764165549,5.75725033,172.13,172.08,10.05813946]
[1729764168140,5.75725033,172.13,172.08,7.15013946]
[1729764168343,5.75725033,172.13,172.09,2.9079]
[1729764168643,2.84995033,172.13,172.08,7.15013946]
[1729764168843,5.75715033,172.13,172.09,2.9078]
[1729764169343,2.84995033,172.13,172.1,2.9076]
[1729764169648,2.84995033,172.13,172.08,7.15013946]
[1729764170554,2.84995033,172.13,172.1,2.9076]
[1729764172445,2.84995033,172.13,172.06,4.5]
[1729764172649,2.84995033,172.13,172.08,7.15013946]
[1729764173147,2.9073,172.13,172.09,2.9079]
[1729764173343,5.87172879,172.13,172.09,2.9079]
[1729764175051,2.9078,172.1,172.07,2.9082]
[1729764175354,2.9078,172.1,172.06,7.15013946]
[1729764176253,2.9078,172.1,172.07,2.9082]
[1729764177455,2.9079,172.09,172.06,7.15013946]
[1729764177652,7.15013946,172.11,172.06,7.15013946]
[1729764177956,10.08031018,172.11,172.06,7.15013946]
[1729764178546,4.5,172.14,172.08,7.15013946]
[1729764178757,11.65013946,172.14,172.08,7.15013946]
[1729764179256,2.92743473,172.13,172.08,7.15013946]
[1729764180755,2.9074,172.12,172.09,2.9078]
[1729764180957,2.88032124,172.11,172.09,2.9078]
[1729764182061,5.78792124,172.11,172.08,2.908]
[1729764182651,5.78792124,172.11,172.07,7.15013946]
[1729764182857,5.78792124,172.11,172.07,10.05823946]
[1729764183558,5.78792124,172.11,172.08,2.908]
[1729764185860,2.9076,172.11,172.08,2.908]
[1729764186358,10.11637224,172.12,172.08,2.908]
[1729764186359,4.5,172.15,172.08,7.15013946]
[1729764186759,11.65013946,172.15,172.08,7.15013946]
[1729764187272,14.56606261,172.15,172.08,7.15013946]
[1729764188161,2.9072,172.13,172.09,2.9078]
[1729764188463,7.15013946,172.12,172.07,7.15013946]
[1729764189263,10.05753946,172.12,172.08,2.908]
[1729764191365,2.9075,172.11,172.08,2.908]
[1729764191566,7.41592315,172.15,172.09,2.9078]
[1729764191767,7.15013946,172.14,172.08,7.15013946]
[1729764191960,10.05733946,172.14,172.08,7.15013946]
[1729764192555,7.15013946,172.14,172.08,7.15013946]
[1729764192866,4.5,172.16,172.1,7.15013946]
[1729764192867,11.65013946,172.16,172.1,7.15013946]
[1729764193168,7.15013946,172.16,172.1,7.15013946]
[1729764193368,2.907,172.15,172.11,2.9075]
[1729764193868,2.9071,172.14,172.11,2.9075]
[1729764195258,1.1732,172.17,172.08,4.5]
[1729764195463,2.9064,172.18,172.14,2.907]
[1729764195867,2.9064,172.18,172.13,10.05723946]
[1729764195868,2.9065,172.17,172.13,10.05723946]
[1729764196062,2.93215617,172.16,172.13,10.05723946]
[1729764196267,2.9065,172.17,172.13,7.15013946]
[1729764196469,2.9065,172.17,172.14,2.907]
[1729764197269,5.80812802,172.17,172.14,2.907]
[1729764197570,2.90162802,172.17,172.14,7.15013946]
[1729764198072,2.9064,172.18,172.14,10.05703946]
[1729764198265,2.9069,172.15,172.12,7.15013946]
[1729764198472,2.85228009,172.16,172.12,7.15013946]
[1729764198672,7.15013946,172.18,172.13,2.907]
[1729764198877,2.9067,172.17,172.13,2.907]
[1729764199170,2.97787228,172.16,172.13,2.907]
[1729764202472,2.9067,172.17,172.13,2.907]
[1729764202673,5.79901084,172.16,172.12,2.9073]
[1729764202873,2.9069,172.16,172.12,10.05743946]
[1729764203273,7.15013946,172.18,172.12,10.05743946]
[1729764203472,2.9069,172.15,172.12,10.05743946]
[1729764203867,2.9069,172.15,172.12,2.9073]
[1729764204067,2.9069,172.15,172.11,2.9075]
[1729764204265,2.83687905,172.16,172.1,8.35063946]
[1729764204467,2.9072,172.14,172.1,8.35063946]
[1729764205275,2.9072,172.14,172.11,2.9075]
[1729764205676,5.74377905,172.16,172.1,8.35063946]
[1729764205871,2.83687905,172.16,172.12,2.9073]
[1729764206270,2.9065,172.17,172.1,8.35063946]
[1729764206470,10.05663946,172.17,172.13,2.9071]
[1729764207977,2.83471068,172.16,172.13,2.9071]
[1729764208169,10.05663946,172.17,172.13,2.9071]
[1729764208370,12.93433597,172.17,172.13,2.9071]
[1729764209375,10.02783597,172.17,172.1,1.2005]
[1729764209572,2.907,172.15,172.11,7.15013946]
[1729764209782,10.02783597,172.17,172.11,7.15013946]
[1729764209978,10.02783597,172.17,172.1,1.2005]
[1729764210185,2.907,172.15,172.11,10.05763946]
[1729764210880,2.9076,172.11,172.08,2.908]
[1729764211080,7.15013946,172.09,172.02,1.2439]
[1729764211379,2.9085,172.06,172.01,2.9091]
[1729764211573,4.5,172.05,172.01,2.9091]
[1729764211769,4.5,172.05,172.0,7.15013946]
[1729764212075,4.5,172.08,172.03,7.15013946]
[1729764212281,7.40964718,172.11,172.05,7.15013946]
[1729764212477,7.15013946,172.12,172.05,7.15013946]
[1729764212478,7.4078,172.1,172.05,7.15013946]
[1729764213076,7.4078,172.1,172.05,10.05853946]
[1729764213272,2.9078,172.1,172.05,10.05853946]
[1729764213475,2.9082,172.08,172.04,4.1596]
[1729764213668,4.5,172.1,172.04,1.2509]
[1729764213874,7.15013946,172.08,172.04,1.2509]
[1729764214480,7.15013946,172.08,172.04,4.1595]
[1729764214677,7.15013946,172.08,172.04,1.2509]
[1729764216281,2.9083,172.07,172.04,1.2509]
[1729764216680,4.5,172.09,172.07,2.9082]
[1729764216877,4.5,172.09,172.04,8.40103946]
[1729764217383,4.5,172.09,172.06,2.9082]
[1729764217586,4.5,172.09,172.04,8.40103946]
[1729764217774,7.15013946,172.1,172.04,8.40103946]
[1729764217981,11.65013946,172.1,172.05,2.9084]
[1729764218180,11.65013946,172.1,172.04,8.40103946]
[1729764218481,11.65013946,172.1,172.05,1.45433112]
[1729764218981,11.65013946,172.1,172.06,2.9082]
[1729764219776,2.86466348,172.11,172.09,2.9078]
[1729764219981,4.5,172.13,172.08,7.15013946]
[1729764220279,7.44318726,172.13,172.08,7.15013946]
[1729764221283,2.9074,172.12,172.08,10.05803946]
[1729764222676,7.4072,172.13,172.09,2.9079]
[1729764223184,10.3827321,172.13,172.09,2.9079]
[1729764223679,4.5,172.14,172.11,2.9074]
[1729764224183,4.5,172.14,172.1,7.15013946]
[1729764224371,4.5,172.14,172.11,1.45411778]
[1729764224577,2.9072,172.13,172.04,1.2509]
[1729764224775,2.9072,172.13,172.08,7.15013946]
[1729764224979,2.9072,172.13,172.09,1.45410903]
[1729764225286,2.9072,172.13,172.1,1.45410903]
[1729764225483,2.9072,172.13,172.09,2.9078]
[1729764225671,2.9072,172.13,172.1,1.45413452]
[1729764225875,2.9072,172.13,172.09,2.9078]
[1729764226083,2.9072,172.13,172.1,1.45413452]
[1729764226276,2.9072,172.13,172.11,1.45413452]
[1729764226582,2.9072,172.13,172.09,2.9078]
[1729764226776,2.9072,172.13,172.1,1.45404604]
[1729764226978,2.9072,172.13,172.11,1.45404604]
[1729764227181,2.9072,172.13,172.09,2.9078]
[1729764227381,2.9072,172.13,172.1,4.36174021]
[1729764227681,2.9072,172.13,172.11,1.45404021]